lending/lending_fUSD_20241025
["ID","MTS","AMOUNT","RATE_DAILY","PERIOD"]
[340829361,1729890632763,-1020.4687,0.000609,2]
[340829362,1729890632772,-5875.9462,0.000609,2]
[340829363,1729890632781,-2996.19081,0.000609,120]
[340829364,1729890632790,-315.27808748,0.000609,2]
[340829365,1729890632800,-300.0,0.000609,2]
[340829366,1729890632809,-500.0,0.00060973,15]
[340829367,1729890632818,-500.0,0.00060973,2]
[340829368,1729890632827,-4774.5235002,0.0006098,14]
[340829369,1729890632836,-1193.63087505,0.00060988,14]
[340829370,1729890632845,-11936.3087505,0.00060989,14]
[340829371,1729890632854,-305.07488412,0.00060989,120]
[340829372,1729890632863,-500.0,0.00060989,7]
[340829373,1729890632872,-500.0,0.00060989,120]
[340829374,1729890632881,-500.0,0.00060989,120]
[340829375,1729890632890,-500.0,0.00060989,120]
[340829376,1729890632899,-500.0,0.00060989,120]
[340829377,1729890632909,-500.0,0.00060989,120]
[340829378,1729890632918,-508.09531073,0.00060989,120]
[340829379,1729890632926,-512.15589394,0.00060989,120]
[340829380,1729890632935,-500.0,0.00060989,120]
[340829381,1729890632944,-500.0,0.00060989,120]
[340829382,1729890632953,-500.0,0.00060989,120]
[340829383,1729890632963,-500.0,0.00060989,120]
[340829384,1729890632973,-500.0,0.00060989,120]
[340829385,1729890632982,-639.74,0.00060989,120]
[340829386,1729890632991,-319.70263525,0.00060989,120]
[340829387,1729890632999,-500.0,0.00060989,120]
[340829388,1729890633009,-500.0,0.00060989,120]
[340829389,1729890633018,-1000.0,0.00060989,120]
[340829390,1729890633027,-500.0,0.00060989,120]
[340829391,1729890633036,-500.0,0.00060989,120]
[340829392,1729890633045,-559.73,0.00060989,120]
[340829393,1729890633054,-500.0,0.00060989,120]
[340829394,1729890633063,-500.0,0.00060989,120]
[340829395,1729890633072,-566.31,0.00060989,120]
[340829396,1729890633081,-8355.41612535,0.0006099,14]
[340829397,1729890633091,-50869.1971599,0.0006099,12]
[340829398,1729890633106,-7793.39350694,0.0006099,12]
[340829400,1729890638360,-9164.36594526,0.0006099,12]
[340829401,1729890638371,-153.4,0.0006099,120]
[340829402,1729890638381,-153.4,0.0006099,120]
[340829403,1729890638390,-500.0,0.00060998,7]
[340829404,1729890638399,-500.0,0.00060998,120]
[340829405,1729890638408,-500.0,0.00060998,120]
[340829406,1729890638417,-500.0,0.00060998,120]
[340829407,1729890638426,-500.0,0.00060998,120]
[340829408,1729890638435,-500.0,0.00060998,120]
[340829409,1729890638444,-500.0,0.00060998,120]
[340829410,1729890638454,-500.0,0.00060998,120]
[340829411,1729890638463,-500.0,0.00060998,120]
[340829412,1729890638472,-444.80629886,0.00060998,120]
[340829413,1729890638481,-500.0,0.00060998,120]
[340829414,1729890638491,-500.0,0.00060998,120]
[340829415,1729890638500,-3058.01,0.00060998,120]
[340829416,1729890638509,-500.0,0.00060998,120]
[340829417,1729890638518,-500.0,0.00060998,120]
[340829418,1729890638527,-500.0,0.00060998,120]
[340829419,1729890638536,-500.0,0.00060998,120]
[340829420,1729890638545,-500.0,0.00060998,120]
[340829421,1729890638555,-375.0,0.00060999,14]
[340829422,1729890638564,-500.0,0.00060999,7]
[340829423,1729890638574,-500.0,0.00060999,7]
[340829424,1729890638583,-500.0,0.00060999,7]
[340829425,1729890638593,-500.0,0.00060999,7]
[340829426,1729890638602,-500.0,0.00060999,7]
[340829427,1729890638612,-500.0,0.00060999,7]
[340829428,1729890638621,-500.0,0.00060999,7]
[340829429,1729890638630,-500.0,0.00060999,7]
[340829430,1729890638639,-500.0,0.00060999,120]
[340829431,1729890638649,-500.0,0.00060999,120]
[340829432,1729890638658,-500.0,0.00060999,120]
[340829433,1729890638667,-338.71923107,0.00060999,120]
[340829434,1729890638677,-500.0,0.00060999,120]
[340829435,1729890638686,-500.0,0.00060999,120]
[340829436,1729890638695,-500.0,0.00060999,120]
[340829437,1729890638704,-500.0,0.00060999,120]
[340829438,1729890638713,-500.0,0.00060999,120]
[340829439,1729890638722,-500.0,0.00060999,120]
[340829440,1729890638731,-500.0,0.00060999,120]
[340829441,1729890638740,-500.0,0.00060999,120]
[340829442,1729890638749,-513.10512176,0.00060999,120]
[340829443,1729890638758,-500.0,0.00060999,120]
[340829444,1729890638767,-500.0,0.00060999,120]
[340829445,1729890638776,-500.0,0.00060999,120]
[340829446,1729890638785,-500.0,0.00060999,120]
[340829447,1729890638794,-500.0,0.00060999,120]
[340829448,1729890638803,-500.0,0.00060999,120]
[340829449,1729890638813,-363.48026115,0.00060999,120]
[340829450,1729890638821,-500.0,0.00060999,120]
[340829451,1729890638831,-396.95513038,0.00060999,120]
[340829452,1729890638840,-500.0,0.00060999,120]
[340829453,1729890638849,-500.0,0.00060999,120]
[340829456,1729890638970,-500.0,0.00060999,120]
[340829458,1729890638981,-500.0,0.00060999,120]
[340829460,1729890638990,-500.0,0.00060999,120]
[340829462,1729890638999,-500.0,0.00060999,120]
[340829463,1729890639008,-500.0,0.00060999,120]
[340829464,1729890639018,-500.0,0.00060999,120]
[340829465,1729890639027,-500.0,0.00060999,120]
[340829466,1729890639036,-500.0,0.00060999,120]
[340829467,1729890639045,-500.0,0.00060999,120]
[340829468,1729890639054,-500.0,0.00060999,120]
[340829469,1729890639063,-500.0,0.00060999,120]
[340829470,1729890639072,-500.0,0.00060999,120]
[340829471,1729890639081,-500.0,0.00060999,120]
[340829472,1729890639091,-500.0,0.00060999,120]
[340829473,1729890639100,-500.0,0.00060999,120]
[340829474,1729890639110,-500.0,0.00060999,120]
[340829475,1729890639119,-495.4012,0.00060999,120]
[340829476,1729890639128,-5000.0,0.00060999,120]
[340829477,1729890639138,-532.75,0.00060999,120]
[340829478,1729890639150,-500.0,0.00060999,120]
[340829479,1729890639160,-500.0,0.00060999,120]
[340829480,1729890639169,-356.27,0.00060999,120]
[340829481,1729890639179,-3058.01,0.00060999,120]
[340829482,1729890639188,-500.0,0.00060999,120]
[340829483,1729890639198,-3058.01,0.00060999,120]
[340829484,1729890639207,-500.0,0.00060999,120]
[340829485,1729890639217,-3058.01,0.00060999,120]
[340829486,1729890639228,-500.0,0.00060999,120]
[340829487,1729890639239,-3058.01,0.00060999,120]
[340829488,1729890639249,-500.0,0.00060999,120]
[340829489,1729890639258,-3058.01,0.00060999,120]
[340829490,1729890639267,-40.08137883,0.00060999,120]
[340829495,1729890640293,-459.91862117,0.00060999,120]
[340829496,1729890640303,-1916.02605183,0.00060999,120]
[340829497,1729890640511,-601.99718342,0.00060999,120]
[340829498,1729890640523,-539.98676475,0.00060999,120]
[340829499,1729890640532,-464.36823525,0.00060999,120]
[340829563,1729890643354,-35.63176475,0.00060999,120]
[340829564,1729890643364,-239.79558842,0.00060999,120]
[340829565,1729890643463,-765.436974,0.00060999,120]
[340829570,1729890698222,3106.3476334,0.0004,30]
[340829571,1729890698479,1000.0,0.00045,2]
[340829574,1729891512156,9400.59895175,0.00025,2]
[340829575,1729891640129,-7298.30220309,0.00025,2]
[340829576,1729891640149,-4778.05781165,0.00049,2]
[340829577,1729891640171,-574.9,0.00057743,2]
[340829578,1729891640192,-176.681,0.00058082,114]
[340829579,1729891640212,-11120.77184303,0.00059335,30]
[340829580,1729891642100,-1859.86241022,0.00059335,30]
[340829581,1729891668053,3184.01,0.00021,4]
[340829582,1729891668073,3184.01,0.00021,4]
[340829583,1729891682100,158000.0,0.00015,2]
[340829584,1729891682123,3184.01,0.00015,2]
[340829585,1729891682151,14916.93847822,0.00015,2]
[340829586,1729891745226,-2873.60590711,0.0002,2]
[340829587,1729891745247,-44085.99276386,0.00021,4]
[340829588,1729891745267,-284.35925295,0.0004,14]
[340829589,1729891745286,-62720.18308693,0.00043,2]
[340829590,1729891745305,-250.0,0.00045,10]
[340829591,1729891745326,-4389.56720188,0.00045,2]
[340829592,1729891745345,-250.0,0.00046,10]
[340829593,1729891745364,-250.0,0.00047,10]
[340829594,1729891745384,-250.0,0.00048,10]
[340829595,1729891745403,-250.0,0.00049,10]
[340829596,1729891745423,-200.000001,0.0005,2]
[340829628,1729891831551,-8012.70781239,0.00043032,2]
[340829629,1729891831565,-615.11,0.00043032,2]
[340829664,1729891837566,-1207.35,0.00043032,2]
[340829665,1729891837626,-3699.92785534,0.00043032,2]
[340829725,1729891840977,-1244.09212786,0.00043032,2]
[340829726,1729891840988,-334.39,0.00043032,2]
[340829727,1729891840999,-319.196952,0.00043032,2]
[340829728,1729891841009,-372.87000001,0.00043032,2]
[340829729,1729891841020,-671.76177122,0.00043032,2]
[340829730,1729891841091,-18717.81823395,0.00043032,2]
[340829731,1729891841100,-27134.42411038,0.00043032,2]
[340829732,1729891841109,-1374.999999,0.00059,30]
[340829733,1729891841118,-11527.62574675,0.00059335,30]
[340829734,1729891841127,-7506.94569083,0.00059337,2]
[340829735,1729891841138,-315.3343428,0.00059337,2]
[340829736,1729891841149,-1672.27172377,0.00059337,2]
[340829737,1729891841160,-5591.6051556,0.00059337,2]
[340829738,1729891841171,-303.93359099,0.00059337,2]
[340829739,1729891841299,-1947.98619997,0.00059337,2]
[340829740,1729891841310,-3935.75749951,0.00059337,2]
[340829798,1729891842427,-1795.91853414,0.00059337,2]
[340829799,1729891842706,-476.99927031,0.00059337,2]
[340829802,1729891845446,-1367.6782029,0.00059337,2]
[340829803,1729891845459,-686.22852507,0.00059337,2]
[340829804,1729891845509,-206.65137887,0.00059337,2]
[340829805,1729891845521,-670.986848,0.00059337,2]
[340829806,1729891845534,-13340.0268,0.00059337,2]
[340829810,1729891855034,202.01406354,0.00017433,2]
[340829811,1729891855336,1000.0,0.00045,2]
[340829814,1729892735135,-300.0,0.00019725,2]
[340829815,1729892735161,-176.0844333,0.000449,2]
[340829816,1729892808098,-175.25387199,0.00045,30]
[340829817,1729892846107,-2751.38461382,0.00045,30]
[340829818,1729892946120,-1472.40469107,0.00045,30]
[340829822,1729893031576,-672.42191584,0.000565,80]
[340829823,1729893031588,-1252.33666243,0.000565,80]
[340829824,1729893031601,-2210.68138415,0.000565,80]
[340829825,1729893031635,-365.35210606,0.000565,80]
[340829826,1729893031697,-892.72793152,0.000565,80]
[340829827,1729893031708,-1242.72449702,0.00056875,2]
[340829828,1729893031719,-334.92760307,0.00056975,2]
[340829829,1729893031732,-631.86,0.00057075,2]
[340829830,1729893031742,-467.53308669,0.00058,120]
[340829831,1729893031755,-545.44642781,0.00058,120]
[340829832,1729893031770,-6519.21195105,0.00058,120]
[340829833,1729893031818,-385.40954235,0.00058,120]
[340829844,1729893037549,-1245.05,0.00058,120]
[340829845,1729893037672,-63992.6589921,0.00058,120]
[340829846,1729893037683,-200.0,0.00058642,120]
[340829847,1729893037693,-183.46,0.00058812,120]
[340829848,1729893037703,-995.0,0.0005882,2]
[340829849,1729893037712,-4932.63,0.00058977,2]
[340829850,1729893037725,-150.0,0.00059051,2]
[340829851,1729893037734,-27332.01553517,0.000591,60]
[340829852,1729893037743,-29244.44962532,0.000591,64]
[340829853,1729893037754,-23890.0,0.000591,2]
[340829854,1729893037764,-4353.42,0.000591,2]
[340829855,1729893037775,-7790.98,0.000591,2]
[340829856,1729893037785,-266.38,0.00059103,30]
[340829857,1729893037794,-781.9,0.00059117,2]
[340829858,1729893037804,-405.57,0.00059117,2]
[340829859,1729893037813,-11120.77,0.00059136,30]
[340829860,1729893037824,-774.16,0.0005914,30]
[340829861,1729893037835,-157.0,0.00059158,2]
[340829862,1729893037844,-2470.77,0.00059158,2]
[340829863,1729893037854,-493.34,0.00059179,2]
[340829864,1729893037863,-250.0,0.0005918,120]
[340829865,1729893037872,-5100.0,0.00059187,30]
[340829866,1729893037882,-800.0,0.00059209,120]
[340829867,1729893037891,-631.86,0.00059339,2]
[340829868,1729893037900,-500.0,0.00059339,7]
[340829869,1729893037910,-176.681,0.00059568,119]
[340829870,1729893037920,-392.13007046,0.00059569,2]
[340829871,1729893037928,-386.38333791,0.00059583,2]
[340829872,1729893037938,-500.0,0.00059625,120]
[340829873,1729893037947,-353.68668098,0.00059625,120]
[340829874,1729893037956,-500.0,0.00059625,120]
[340829875,1729893037966,-500.0,0.00059625,120]
[340829876,1729893037975,-500.0,0.00059625,120]
[340829877,1729893037984,-500.0,0.00059625,120]
[340829878,1729893037994,-500.0,0.00059625,120]
[340829879,1729893038004,-500.0,0.00059625,120]
[340829880,1729893038013,-598.29979735,0.00059625,120]
[340829881,1729893038022,-500.0,0.00059625,120]
[340829882,1729893038032,-5000.0,0.00059626,120]
[340829883,1729893038041,-5000.0,0.00059626,120]
[340829884,1729893038050,-5000.0,0.00059626,120]
[340829885,1729893038059,-5000.0,0.00059626,120]
[340829886,1729893038068,-5000.0,0.00059626,120]
[340829887,1729893038077,-5000.0,0.00059626,120]
[340829888,1729893038086,-5000.0,0.00059626,120]
[340829889,1729893038096,-5000.0,0.00059626,120]
[340829890,1729893038106,-5000.0,0.00059626,120]
[340829891,1729893038115,-5000.0,0.00059626,120]
[340829893,1729893038125,-5000.0,0.00059626,120]
[340829895,1729893038134,-5000.0,0.00059626,120]
[340829897,1729893038144,-5000.0,0.00059626,120]
[340829899,1729893038154,-5000.0,0.00059626,120]
[340829901,1729893038163,-5000.0,0.00059626,120]
[340829903,1729893038173,-5000.0,0.00059626,120]
[340829905,1729893038182,-5000.0,0.00059626,120]
[340829907,1729893038192,-164.5,0.00059667,2]
[340829908,1729893038202,-1098.98722404,0.000599,15]
[340829910,1729893038211,-212.42353397,0.000599,120]
[340829912,1729893038220,-10000.0,0.0006,60]
[340829914,1729893038229,-732.74,0.0006,120]
[340829916,1729893038240,-2001.24,0.0006,120]
[340829918,1729893038249,-222.44,0.00060274,60]
[340829920,1729893038259,-150.0,0.00060274,60]
[340829922,1729893038269,-150.0,0.00060274,60]
[340829924,1729893038279,-150.0,0.00060274,60]
[340829926,1729893038290,-1098.98722399,0.00060456,15]
[340829928,1729893038299,-2110.0,0.000605,30]
[340829930,1729893038309,-629.39725797,0.00060564,120]
[340829932,1729893038318,-187.34,0.00060873,2]
[340829934,1729893038327,-3863.1816,0.0006089,2]
[340829935,1729893038336,-10000.0,0.000609,120]
[340829937,1729893038346,-49023.02052844,0.000609,60]
[340829939,1729893038355,-300.0,0.000609,120]
[340829941,1729893038364,-455.28692388,0.000609,2]
[340829943,1729893038374,-597.00000254,0.000609,2]
[340829945,1729893038383,-7654.6711955,0.000609,2]
[340829946,1729893038392,-1629.62962964,0.000609,2]
[340829948,1729893038402,-179.54590108,0.000609,2]
[340829950,1729893038411,-500.0,0.00060973,15]
[340829952,1729893038420,-500.0,0.00060973,2]
[340829954,1729893038429,-153.4,0.00060984,120]
[340829956,1729893038438,-3507.02517488,0.00060988,12]
[340829957,1729893038447,-56112.4027981,0.00060989,12]
[340829959,1729893038456,-500.0,0.00060989,120]
[340829961,1729893038466,-500.0,0.00060989,120]
[340829963,1729893038475,-482.52141491,0.00060989,120]
[340829965,1729893038486,-500.0,0.00060989,120]
[340829967,1729893038495,-411.95954132,0.00060989,120]
[340829969,1729893038504,-444.1267207,0.00060989,120]
[340829971,1729893038513,-500.0,0.00060989,120]
[340829973,1729893038522,-500.0,0.00060989,120]
[340829975,1729893038531,-500.0,0.00060989,120]
[340829977,1729893038542,-500.0,0.00060989,120]
[340829979,1729893038552,-500.0,0.00060989,120]
[340829981,1729893038562,-500.0,0.00060989,120]
[340829983,1729893038574,-500.0,0.00060989,120]
[340829985,1729893038583,-500.0,0.00060989,7]
[340829987,1729893038594,-500.0,0.00060989,120]
[340829989,1729893038604,-500.0,0.00060989,120]
[340829991,1729893038615,-500.0,0.00060989,120]
[340829993,1729893038626,-629.77964931,0.00060989,120]
[340829995,1729893038639,-510.71362825,0.00060989,2]
[340829997,1729893038648,-500.0,0.00060989,120]
[340829999,1729893038657,-500.0,0.00060989,120]
[340830001,1729893038667,-500.0,0.00060989,120]
[340830003,1729893038675,-500.0,0.00060989,120]
[340830004,1729893038685,-500.0,0.00060989,120]
[340830006,1729893038695,-500.0,0.00060989,120]
[340830008,1729893038703,-500.0,0.00060989,120]
[340830010,1729893038712,-500.0,0.00060989,120]
[340830012,1729893038725,-500.0,0.00060989,120]
[340830014,1729893038734,-500.0,0.00060989,120]
[340830016,1729893038744,-500.0,0.00060989,120]
[340830018,1729893038753,-581.14,0.00060989,120]
[340830020,1729893038763,-896.23,0.00060989,120]
[340830022,1729893038773,-533.19804923,0.00060989,120]
[340830024,1729893038783,-500.0,0.00060989,120]
[340830026,1729893038793,-218.81540517,0.00060989,120]
[340830027,1729893038802,-500.0,0.00060989,120]
[340830029,1729893038811,-500.0,0.00060989,120]
[340830031,1729893038820,-500.0,0.00060989,120]
[340830033,1729893038830,-151.0,0.00060989,120]
[340830035,1729893038839,-500.0,0.00060989,120]
[340830037,1729893038848,-500.0,0.00060989,120]
[340830039,1729893038857,-500.0,0.00060989,120]
[340830041,1729893038867,-529.41307071,0.00060989,120]
[340830043,1729893038877,-151.0,0.00060989,120]
[340830045,1729893038887,-500.0,0.00060989,120]
[340830047,1729893038896,-952.82,0.00060989,120]
[340830049,1729893038906,-151.0,0.00060989,120]
[340830050,1729893038915,-557.99928915,0.00060989,120]
[340830052,1729893038924,-151.0,0.00060989,120]
[340830054,1729893038934,-151.0,0.00060989,120]
[340830056,1729893038944,-500.0,0.00060989,120]
[340830058,1729893038953,-296.2059034,0.00060989,2]
[340830060,1729893038963,-500.0,0.00060989,120]
[340830062,1729893038972,-500.0,0.00060989,120]
[340830064,1729893038981,-28056.201399,0.0006099,12]
[340830066,1729893038991,-151.0,0.0006099,120]
[340830068,1729893039000,-152.393785,0.0006099,120]
[340830070,1729893039009,-151.0,0.0006099,120]
[340830072,1729893039018,-151.0,0.0006099,120]
[340830074,1729893039029,-251.742639,0.0006099,120]
[340830076,1729893039038,-251.742639,0.0006099,120]
[340830078,1729893039048,-151.0,0.0006099,120]
[340830080,1729893039057,-77154.5538474,0.0006099,12]
[340830082,1729893039067,-186.254273,0.0006099,120]
[340830083,1729893039076,-263.048346,0.0006099,120]
[340830085,1729893039086,-173.995129,0.0006099,120]
[340830087,1729893039096,-151.0,0.0006099,120]
[340830089,1729893039105,-151.0,0.0006099,120]
[340830091,1729893039115,-151.0,0.0006099,120]
[340830093,1729893039124,-161.824757,0.0006099,120]
[340830095,1729893039133,-161.824757,0.0006099,120]
[340830096,1729893039143,-153.502483,0.0006099,120]
[340830098,1729893039152,-151.0,0.0006099,120]
[340830100,1729893039162,-151.0,0.0006099,120]
[340830102,1729893039172,-151.0,0.0006099,120]
[340830104,1729893039182,-151.0,0.0006099,120]
[340830106,1729893039191,-151.0,0.0006099,120]
[340830108,1729893039200,-151.0,0.0006099,120]
[340830110,1729893039209,-151.0,0.0006099,120]
[340830112,1729893039219,-151.0,0.0006099,120]
[340830113,1729893039228,-49417.3594417,0.00060994,2]
[340830115,1729893039237,-151.0,0.00060994,120]
[340830117,1729893039246,-151.0,0.00060994,120]
[340830119,1729893039256,-251.742639,0.00060994,120]
[340830121,1729893039267,-251.742639,0.00060994,120]
[340830123,1729893039278,-151.0,0.00060994,120]
[340830125,1729893039289,-151.0,0.00060994,120]
[340830127,1729893039298,-209.610444,0.00060994,120]
[340830129,1729893039308,-151.0,0.00060994,120]
[340830130,1729893039317,-161.824757,0.00060994,120]
[340830132,1729893039327,-161.824757,0.00060994,120]
[340830134,1729893039336,-500.0,0.00060998,120]
[340830136,1729893039346,-543.45175906,0.00060998,120]
[340830137,1729893039355,-500.0,0.00060998,2]
[340830139,1729893039364,-500.0,0.00060998,120]
[340830141,1729893039374,-217.87250387,0.00060998,120]
[340830143,1729893039384,-224.99376734,0.00060998,31]
[340830145,1729893039393,-151.0,0.00060998,120]
[340830147,1729893039402,-151.0,0.00060998,120]
[340830149,1729893039412,-154.027241,0.00060998,120]
[340830150,1729893039422,-251.742639,0.00060998,120]
[340830152,1729893039431,-251.742639,0.00060998,120]
[340830154,1729893039440,-151.0,0.00060998,120]
[340830156,1729893039450,-896.23,0.00060998,120]
[340830158,1729893039460,-151.843763,0.00060998,120]
[340830160,1729893039470,-161.824757,0.00060998,120]
[340830163,1729893039480,-161.824757,0.00060998,120]
[340830165,1729893039490,-161.824757,0.00060998,120]
[340830167,1729893039500,-161.824757,0.00060998,120]
[340830169,1729893039510,-500.0,0.00060998,120]
[340830171,1729893039519,-500.0,0.00060998,120]
[340830173,1729893039528,-187.584584,0.00060998,120]
[340830176,1729893039537,-952.82,0.00060998,120]
[340830177,1729893039546,-151.0,0.00060998,120]
[340830179,1729893039556,-151.0,0.00060998,120]
[340830181,1729893039565,-209.450492,0.00060998,120]
[340830183,1729893039574,-151.0,0.00060998,120]
[340830185,1729893039584,-151.0,0.00060998,120]
[340830187,1729893039593,-500.0,0.00060998,120]
[340830189,1729893039603,-503.69097015,0.00060999,120]
[340830191,1729893039612,-3606.33476441,0.00060999,120]
[340830204,1729893039745,-305.70940062,0.00060999,120]
[340830206,1729893039757,-464.94110917,0.00060999,120]
[340830208,1729893039767,-275.43867083,0.00060999,2]
[340830211,1729893039778,-724.56132917,0.00060999,2]
[340830212,1729893039788,-56.23867083,0.00060999,2]
[340830215,1729893039799,-460.72464121,0.00060999,2]
[340830217,1729893039811,-483.03668796,0.00060999,2]
[340830219,1729893039820,-377.91331204,0.00060999,2]
[340830223,1729893039850,-151.0,0.00060989,120]
[340830224,1729893039860,-151.0,0.00060989,7]
[340830226,1729893039869,-1202.31722454,0.00060989,2]
[340830229,1729893039889,-1090.60402,0.00060989,2]
[340830239,1729893039979,-336.129454,0.00060989,2]
[340830763,1729893045565,-490.81452923,0.000609,30]
[340831113,1729893051772,150.0,0.00017433,2]
[340831114,1729893789784,155.48,0.00015342,2]
[340831115,1729893955136,-207.62340022,0.0003,2]
[340831116,1729893955155,-187.82440874,0.00032877,2]
[340831117,1729893955174,-294.35489392,0.00039,2]
[340831118,1729893955193,-2130.83477508,0.0005,14]
[340831119,1729893995094,-200.0,0.00023,2]
[340831120,1729893995115,-14.7063872,0.0004975,2]
[340831121,1729894146131,-324.78897817,0.0004975,2]
[340831122,1729894146156,-7906.51079555,0.0005,14]
[340831123,1729894231830,-415.67656536,0.00056408,2]
[340831124,1729894231891,-647.00343464,0.00056408,2]
[340831125,1729894231900,-53.99656536,0.00058001,120]
[340831126,1729894231911,-96.11343464,0.00058001,120]
[340831127,1729894231920,-250.0,0.00058148,120]
[340831128,1729894231928,-9185.0355987,0.00058158,2]
[340831139,1729894237745,-748.26,0.00058158,2]
[340831140,1729894237803,-10325.2544013,0.00058158,2]
[340831141,1729894237813,-250.0,0.0005817,120]
[340831142,1729894237822,-200.0,0.00058238,2]
[340831143,1729894237832,-160.0,0.00058245,120]
[340831144,1729894237841,-493.92936186,0.00058245,2]
[340831145,1729894237852,-136.80063814,0.00058245,2]
[340831146,1729894237862,-592.37453589,0.00058245,10]
[340831147,1729894237873,-97.49546411,0.00058245,10]
[340831148,1729894237882,-378.32586934,0.00058245,2]
[340831149,1729894237894,-7539.51291456,0.00058245,2]
[340831150,1729894237903,-4079.03,0.00058255,2]
[340831151,1729894237912,-279.47,0.00058327,2]
[340831152,1729894237922,-166.68,0.00058327,30]
[340831153,1729894237931,-150.0,0.00058388,2]
[340831154,1729894237940,-332.86521334,0.000584,120]
[340831155,1729894237951,-43.64478666,0.000584,120]
[340831156,1729894237961,-1000.0,0.00058434,12]
[340831157,1729894237971,-450.0,0.00058434,9]
[340831158,1729894237980,-23890.0,0.00058435,2]
[340831159,1729894237990,-31610.86166304,0.00058435,30]
[340831160,1729894238001,-577.89,0.00058435,30]
[340831161,1729894238012,-9909.69919234,0.00058435,30]
[340831162,1729894238023,-11723.62914462,0.00058435,30]
[340831163,1729894238033,-250.0,0.00058454,120]
[340831164,1729894238042,-19965.07,0.0005847,2]
[340831165,1729894238052,-1062.68,0.00058672,2]
[340831166,1729894238061,-2054.92,0.00058677,30]
[340831167,1729894238071,-154.99,0.00058677,2]
[340831168,1729894238080,-180.28,0.00058684,2]
[340831169,1729894238090,-163.54,0.00058811,2]
[340831170,1729894238099,-524.96,0.00058867,2]
[340831171,1729894238109,-840.0,0.00058885,120]
[340831172,1729894238118,-199.59,0.00058891,120]
[340831173,1729894238127,-2640.0,0.000589,90]
[340831174,1729894238136,-176.683,0.00058907,117]
[340831175,1729894238146,-3115.50358315,0.00059061,15]
[340831176,1729894238155,-250.0,0.00059686,120]
[340831177,1729894238165,-202.913608,0.00059686,120]
[340831178,1729894238174,-3115.50358315,0.0005971,15]
[340831179,1729894238184,-169.93,0.00059777,120]
[340831180,1729894238193,-173.83,0.00060051,91]
[340831181,1729894238203,-500.0,0.00060128,120]
[340831182,1729894238212,-500.0,0.0006018,120]
[340831183,1729894238222,-500.0,0.00060195,120]
[340831184,1729894238231,-278.0,0.000602,13]
[340831185,1729894238241,-3115.50358315,0.00060359,15]
[340831186,1729894238250,-8396.35739252,0.0006038,14]
[340831187,1729894238259,-500.0,0.00060389,120]
[340831188,1729894238268,-500.0,0.00060389,120]
[340831189,1729894238278,-500.0,0.00060389,120]
[340831190,1729894238287,-491.72471688,0.00060389,120]
[340831191,1729894238297,-623.47054288,0.00060389,120]
[340831192,1729894238306,-500.0,0.00060389,120]
[340831193,1729894238316,-500.0,0.00060389,120]
[340831195,1729894238446,-500.0,0.00060389,120]
[340831196,1729894238456,-500.0,0.00060389,120]
[340831197,1729894238467,-501.77160792,0.00060389,120]
[340831198,1729894238477,-500.0,0.00060389,120]
[340831199,1729894238486,-500.0,0.00060389,120]
[340831200,1729894238495,-500.0,0.00060389,120]
[340831201,1729894238505,-500.0,0.00060389,120]
[340831202,1729894238515,-500.0,0.00060389,120]